fUSD/lending_fUSD_20240223
["ID","MTS","AMOUNT","RATE_DAILY","PERIOD"]
[314934546,1708687861138,-565.48669794,0.00028023,2]
[314934547,1708687861148,-500.0,0.00028023,2]
[314934548,1708687861157,-500.0,0.00028023,2]
[314934549,1708687861166,-500.0,0.00028023,2]
[314934550,1708687861175,-500.0,0.00028023,2]
[314934551,1708687861184,-526.03283944,0.00028023,2]
[314934552,1708687861193,-521.44140571,0.00028023,2]
[314934553,1708687861202,-500.0,0.00028023,2]
[314934554,1708687861211,-500.0,0.00028023,2]
[314934555,1708687861221,-500.0,0.00028023,2]
[314934556,1708687861230,-500.0,0.00028023,2]
[314934557,1708687861239,-543.97,0.00028023,2]
[314934558,1708687861248,-500.0,0.00028023,2]
[314934559,1708687861257,-500.0,0.00028023,2]
[314934560,1708687861268,-692.42,0.00028023,2]
[314934561,1708687861277,-652.69,0.00028023,2]
[314934562,1708687861287,-500.0,0.00028023,2]
[314934563,1708687861295,-500.0,0.00028023,2]
[314934564,1708687861305,-500.0,0.00028023,2]
[314934565,1708687861314,-500.0,0.00028023,2]
[314934566,1708687861323,-500.0,0.00028023,2]
[314934567,1708687861333,-500.0,0.00028023,2]
[314934568,1708687861342,-500.0,0.00028023,2]
[314934569,1708687861351,-500.0,0.00028023,2]
[314934570,1708687861362,-500.0,0.00028023,2]
[314934571,1708687861372,-500.0,0.00028023,2]
[314934572,1708687861381,-528.98266818,0.00028023,2]
[314934573,1708687861391,-500.0,0.00028023,2]
[314934574,1708687861400,-500.0,0.00028023,2]
[314934575,1708687861410,-500.0,0.00028023,2]
[314934576,1708687861419,-500.0,0.00028023,2]
[314934577,1708687861428,-552.85977486,0.00028023,2]
[314934578,1708687861438,-500.0,0.00028023,2]
[314934579,1708687861449,-500.0,0.00028023,2]
[314934580,1708687861459,-611.5968697,0.00028023,2]
[314934581,1708687861468,-500.0,0.00028023,2]
[314934582,1708687861477,-500.0,0.00028023,2]
[314934583,1708687861487,-525.53,0.00028023,2]
[314934584,1708687861496,-500.0,0.00028023,2]
[314934585,1708687861505,-500.0,0.00028023,2]
[314934586,1708687861515,-500.0,0.00028023,2]
[314934587,1708687861524,-449.69497421,0.00028023,2]
[314934588,1708687861535,-500.0,0.00028023,2]
[314934589,1708687861544,-500.0,0.00028023,2]
[314934590,1708687861553,-500.0,0.00028023,2]
[314934591,1708687861562,-500.0,0.00028023,2]
[314934592,1708687861572,-500.0,0.00028023,2]
[314934593,1708687861581,-447.32610995,0.00028023,2]
[314934594,1708687861591,-500.0,0.00028023,2]
[314934595,1708687861601,-500.0,0.00028023,2]
[314934596,1708687861611,-500.0,0.00028023,2]
[314934597,1708687861621,-500.0,0.00028023,2]
[314934598,1708687861630,-546.55,0.00028023,2]
[314934599,1708687861639,-554.09,0.00028023,2]
[314934600,1708687861648,-500.0,0.00028023,2]
[314934601,1708687861657,-500.0,0.00028023,2]
[314934602,1708687861666,-418.92195895,0.00028023,2]
[314934603,1708687861675,-500.0,0.00028023,2]
[314934604,1708687861685,-500.0,0.00028023,2]
[314934605,1708687861695,-500.0,0.00028023,2]
[314934606,1708687861705,-500.0,0.00028023,2]
[314934607,1708687861714,-500.0,0.00028023,2]
[314934608,1708687861723,-533.71154368,0.00028023,2]
[314934609,1708687861732,-581.81,0.00028023,2]
[314934610,1708687861741,-200.0,0.00028023,2]
[314934611,1708687861750,-500.05,0.00028023,2]
[314934612,1708687861760,-500.0,0.00028023,2]
[314934613,1708687861770,-500.0,0.00028023,2]
[314934614,1708687861779,-500.0,0.00028023,2]
[314934615,1708687861789,-500.0,0.00028023,2]
[314934616,1708687861798,-663.14,0.00028023,2]
[314934617,1708687861808,-500.0,0.00028023,2]
[314934618,1708687861817,-500.0,0.00028023,2]
[314934619,1708687861826,-498.68969128,0.00028023,2]
[314934620,1708687861835,-500.0,0.00028023,2]
[314934621,1708687861844,-500.0,0.00028023,2]
[314934622,1708687861854,-500.0,0.00028023,2]
[314934623,1708687861864,-500.0,0.00028023,2]
[314934624,1708687861873,-500.0,0.00028023,2]
[314934625,1708687861882,-500.0,0.00028023,2]
[314934626,1708687861892,-500.0,0.00028023,2]
[314934627,1708687861901,-705.93,0.00028023,2]
[314934628,1708687861910,-500.0,0.00028023,2]
[314934629,1708687861919,-585.0,0.00028023,2]
[314934630,1708687861929,-500.0,0.00028023,2]
[314934631,1708687861938,-175.45815066,0.00028023,2]
[314934632,1708687861947,-689.25,0.00028023,2]
[314934633,1708687861957,-500.0,0.00028023,2]
[314934634,1708687861966,-500.0,0.00028023,2]
[314934635,1708687861976,-500.0,0.00028023,2]
[314934636,1708687861984,-521.70701592,0.00028023,2]
[314934637,1708687861994,-1000.0,0.00028023,7]
[314934638,1708687862003,-500.0,0.00028023,2]
[314934639,1708687862012,-500.0,0.00028023,2]
[314934640,1708687862022,-500.0,0.00028023,2]
[314934641,1708687862032,-500.0,0.00028023,2]
[314934642,1708687862041,-376.04935292,0.00028023,2]
[314934643,1708687862050,-500.0,0.00028023,2]
[314934644,1708687862059,-500.0,0.00028023,2]
[314934645,1708687862069,-615.67432768,0.00028023,2]
[314934646,1708687862078,-500.0,0.00028023,2]
[314934647,1708687862088,-500.0,0.00028023,2]
[314934648,1708687862098,-500.0,0.00028023,2]
[314934649,1708687862107,-525.13845042,0.00028023,2]
[314934650,1708687862117,-500.0,0.00028023,2]
[314934651,1708687862127,-500.0,0.00028023,2]
[314934652,1708687862136,-500.0,0.00028023,2]
[314934653,1708687862145,-500.0,0.00028023,2]
[314934654,1708687862154,-592.04569112,0.00028023,2]
[314934655,1708687862163,-1000.0,0.00028023,7]
[314934656,1708687862173,-533.54361983,0.00028023,2]
[314934657,1708687862182,-500.0,0.00028023,2]
[314934658,1708687862191,-572.85,0.00028023,2]
[314934659,1708687862200,-500.0,0.00028023,2]
[314934660,1708687862209,-500.0,0.00028023,2]
[314934661,1708687862219,-500.0,0.00028023,2]
[314934662,1708687862228,-500.0,0.00028023,2]
[314934663,1708687862237,-500.0,0.00028023,2]
[314934664,1708687862246,-500.0,0.00028023,2]
[314934665,1708687862255,-521.99089622,0.00028023,2]
[314934666,1708687862265,-500.0,0.00028023,2]
[314934667,1708687862275,-630.23,0.00028023,2]
[314934668,1708687862284,-576.84,0.00028023,2]
[314934669,1708687862293,-523.46252412,0.00028023,2]
[314934670,1708687862303,-500.0,0.00028023,2]
[314934671,1708687862313,-548.45,0.00028023,2]
[314934672,1708687862322,-500.0,0.00028023,2]
[314934673,1708687862331,-500.0,0.00028023,2]
[314934674,1708687862343,-500.0,0.00028023,2]
[314934675,1708687862354,-500.0,0.00028023,2]
[314934676,1708687862372,-515.43,0.00028023,2]
[314934677,1708687862385,-500.0,0.00028023,2]
[314934678,1708687862394,-500.0,0.00028023,2]
[314934679,1708687862404,-645.39268769,0.00028023,2]
[314934680,1708687862413,-1417.3,0.00028023,2]
[314934681,1708687862422,-500.0,0.00028023,2]
[314934682,1708687862432,-500.0,0.00028023,2]
[314934683,1708687862442,-500.0,0.00028023,2]
[314934684,1708687862452,-500.0,0.00028023,2]
[314934685,1708687862462,-500.0,0.00028023,2]
[314934686,1708687862471,-500.0,0.00028023,2]
[314934687,1708687862481,-1090.8,0.00028023,2]
[314934688,1708687862490,-500.0,0.00028023,2]
[314934689,1708687862500,-500.0,0.00028023,2]
[314934690,1708687862509,-1164.2,0.00028023,2]
[314934691,1708687862518,-503.2,0.00028023,2]
[314934692,1708687862528,-543.19801394,0.00028023,2]
[314934693,1708687862538,-500.0,0.00028023,2]
[314934694,1708687862547,-500.0,0.00028023,2]
[314934695,1708687862556,-500.0,0.00028023,2]
[314934696,1708687862565,-500.0,0.00028023,2]
[314934697,1708687862575,-569.39,0.00028023,2]
[314934698,1708687862585,-570.03041951,0.00028023,2]
[314934699,1708687862595,-381.2057303,0.00028023,2]
[314934700,1708687862604,-500.0,0.00028023,2]
[314934701,1708687862614,-500.0,0.00028023,2]
[314934702,1708687862623,-500.0,0.00028023,2]
[314934703,1708687862632,-500.0,0.00028023,2]
[314934704,1708687862642,-500.0,0.00028023,2]
[314934705,1708687862651,-500.0,0.00028023,2]
[314934706,1708687862661,-653.62,0.00028023,2]
[314934707,1708687862671,-282.35866388,0.00028023,2]
[314934708,1708687862680,-537.45671176,0.00028023,2]
[314934709,1708687862689,-190.59835944,0.00028023,2]
[314934710,1708687862699,-640.92,0.00028023,2]
[314934711,1708687862708,-824.08,0.0002803,2]
[314934712,1708687862718,-500.0,0.00028045,2]
[314934713,1708687862727,-500.0,0.00028045,2]
[314934714,1708687862737,-500.0,0.00028045,2]
[314934715,1708687862747,-500.0,0.00028045,2]
[314934716,1708687862756,-4847.86,0.00028055,2]
[314934717,1708687862765,-11134.42,0.00028055,2]
[314934718,1708687862775,-3902.63,0.00028055,2]
[314934719,1708687862785,-734.38,0.00028055,2]
[314934720,1708687862795,-500.0,0.00028055,2]
[314934721,1708687862804,-1561.14,0.00028055,2]
[314934722,1708687862813,-579.15,0.00028055,2]
[314934723,1708687862822,-651.84,0.00028055,2]
[314934724,1708687862831,-1084.77,0.00028055,2]
[314934725,1708687862841,-1887.89,0.00028055,2]
[314934726,1708687862850,-609.56,0.00028055,2]
[314934727,1708687862860,-12394.29,0.00028055,2]
[314934728,1708687862869,-783.01,0.00028055,2]
[314934729,1708687862878,-3065.32,0.00028055,2]
[314934730,1708687862888,-4064.58,0.00028055,2]
[314934731,1708687862897,-748.74,0.00028055,2]
[314934732,1708687862906,-3606.12,0.00028055,2]
[314934733,1708687862915,-1803.24,0.00028055,2]
[314934734,1708687862925,-500.0,0.00028055,2]
[314934735,1708687862934,-1373.42,0.00028055,2]
[314934736,1708687862943,-500.0,0.00028055,2]
[314934737,1708687862952,-3288.95,0.00028055,2]
[314934738,1708687862961,-500.0,0.00028055,2]
[314934739,1708687862971,-1085.83,0.00028055,2]
[314934740,1708687862980,-574.06,0.00028055,2]
[314934741,1708687862989,-500.0,0.00028055,2]
[314934742,1708687862999,-5748.3,0.00028055,2]
[314934743,1708687863008,-500.0,0.00028055,2]
[314934744,1708687863017,-955.05,0.00028055,2]
[314934745,1708687863027,-585.26,0.00028055,2]
[314934746,1708687863036,-932.29,0.00028055,2]
[314934747,1708687863046,-909.02,0.00028055,2]
[314934748,1708687863055,-1451.42,0.00028055,2]
[314934749,1708687863065,-654.98,0.00028055,2]
[314934750,1708687863074,-808.82,0.00028055,2]
[314934751,1708687863084,-1169.24,0.00028055,2]
[314934752,1708687863093,-884.15,0.00028055,2]
[314934753,1708687863101,-677.0,0.00028055,2]
[314934754,1708687863110,-606.24,0.00028055,2]
[314934755,1708687863119,-835.13,0.00028055,2]
[314934756,1708687863128,-2229.23,0.00028055,2]
[314934757,1708687863137,-970.48,0.00028055,2]
[314934758,1708687863146,-1003.43,0.00028055,2]
[314934759,1708687863222,-963.02,0.00028055,2]
[314934760,1708687863232,-538.59,0.00028055,2]
[314934761,1708687863241,-556.56,0.00028055,2]
[314934762,1708687863251,-1709.58,0.00028055,2]
[314934763,1708687863260,-500.0,0.00028056,2]
[314934764,1708687863270,-500.0,0.00028056,2]
[314934765,1708687863279,-500.0,0.00028056,2]
[314934766,1708687863287,-500.0,0.00028056,2]
[314934767,1708687863296,-515.12919729,0.00028056,2]
[314934768,1708687863305,-500.0,0.00028056,2]
[314934769,1708687863314,-500.0,0.00028056,2]
[314934770,1708687863323,-500.0,0.00028056,2]
[314934771,1708687863332,-500.0,0.00028056,2]
[314934772,1708687863341,-500.0,0.00028056,2]
[314934773,1708687863350,-500.0,0.00028056,2]
[314934774,1708687863361,-500.0,0.00028056,2]
[314934775,1708687863371,-500.0,0.00028056,2]
[314934776,1708687863381,-500.0,0.00028056,2]
[314934777,1708687863390,-500.0,0.00028056,2]
[314934778,1708687863400,-500.0,0.00028056,2]
[314934779,1708687863410,-500.0,0.00028056,2]
[314934780,1708687863420,-500.0,0.00028056,2]
[314934781,1708687863429,-859.67,0.00028056,2]
[314934782,1708687863440,-500.0,0.00028056,2]
[314934783,1708687863450,-500.0,0.00028056,2]
[314934784,1708687863459,-500.0,0.00028056,2]
[314934785,1708687863470,-500.0,0.00028056,2]
[314934786,1708687863479,-583.94,0.00028056,2]
[314934787,1708687863489,-500.0,0.00028056,2]
[314934788,1708687863498,-594.6,0.00028056,2]
[314934789,1708687863507,-500.0,0.00028056,2]
[314934790,1708687863516,-500.0,0.00028056,2]
[314934791,1708687863527,-500.0,0.00028056,2]
[314934792,1708687863536,-500.0,0.00028056,2]
[314934793,1708687863545,-500.0,0.00028056,2]
[314934794,1708687863554,-330.35920952,0.00028056,2]
[314934795,1708687863564,-539.08288956,0.00028056,2]
[314934796,1708687863572,-591.93,0.00028056,2]
[314934797,1708687863582,-500.0,0.00028056,2]
[314934798,1708687863591,-500.0,0.00028056,2]
[314934799,1708687863600,-500.0,0.00028056,2]
[314934800,1708687863609,-500.0,0.00028056,2]
[314934801,1708687863618,-577.02,0.00028056,2]
[314934802,1708687863627,-500.0,0.00028056,2]
[314934803,1708687863636,-567.19,0.00028056,2]
[314934804,1708687863645,-500.0,0.00028056,2]
[314934805,1708687863654,-500.0,0.00028056,2]
[314934806,1708687863663,-500.0,0.00028056,2]
[314934807,1708687863671,-644.84,0.00028056,2]
[314934808,1708687863681,-564.62,0.00028056,2]
[314934809,1708687863690,-500.0,0.00028056,2]
[314934810,1708687863699,-500.0,0.00028056,2]
[314934811,1708687863708,-500.0,0.00028056,2]
[314934812,1708687863717,-500.0,0.00028056,2]
[314934813,1708687863726,-529.92763708,0.00028056,2]
[314934814,1708687863735,-500.0,0.00028056,2]
[314934815,1708687863744,-508.82,0.00028056,2]
[314934816,1708687863754,-500.0,0.00028056,2]
[314934817,1708687863763,-500.0,0.00028056,2]
[314934818,1708687863771,-500.0,0.00028056,2]
[314934819,1708687863780,-150.0,0.00028056,2]
[314934820,1708687863789,-500.0,0.00028056,2]
[314934821,1708687863798,-500.0,0.00028056,2]
[314934822,1708687863807,-500.0,0.00028056,2]
[314934823,1708687863816,-500.0,0.00028056,2]
[314934824,1708687863825,-500.0,0.00028056,2]
[314934825,1708687863835,-500.0,0.00028056,2]
[314934826,1708687863844,-500.0,0.00028056,2]
[314934827,1708687863853,-500.0,0.00028056,2]
[314934828,1708687863863,-500.0,0.00028056,2]
[314934829,1708687863872,-790.83,0.00028056,2]
[314934830,1708687863881,-500.0,0.00028056,2]
[314934831,1708687863890,-500.0,0.00028056,2]
[314934832,1708687863899,-500.0,0.00028056,2]
[314934833,1708687863908,-708.94,0.00028056,2]
[314934834,1708687863918,-500.0,0.00028056,2]
[314934835,1708687863927,-500.0,0.00028056,2]
[314934836,1708687863936,-652.21,0.00028056,2]
[314934837,1708687863945,-500.0,0.00028056,2]
[314934838,1708687863955,-500.0,0.00028056,2]
[314934839,1708687863964,-500.0,0.00028056,2]
[314934840,1708687863973,-500.0,0.00028056,2]
[314934841,1708687863983,-1275.36,0.00028056,2]
[314934842,1708687863992,-500.0,0.00028056,2]
[314934843,1708687864002,-1273.22,0.00028056,2]
[314934844,1708687864010,-500.0,0.00028056,2]
[314934845,1708687864020,-673.53,0.00028056,2]
[314934846,1708687864029,-964.47,0.00028056,2]
[314934847,1708687864038,-1234.63,0.00028056,2]
[314934848,1708687864046,-4595.02,0.00028056,2]
[314934849,1708687864056,-779.63,0.00028056,2]
[314934850,1708687864065,-896.56,0.00028056,2]
[314934851,1708687864074,-500.0,0.00028056,2]
[314934852,1708687864083,-500.0,0.00028056,2]
[314934853,1708687864093,-894.25,0.00028056,2]
[314934854,1708687864102,-500.0,0.00028056,2]
[314934855,1708687864111,-4586.7,0.00028056,2]
[314934856,1708687864120,-500.0,0.00028056,2]
[314934857,1708687864129,-500.0,0.00028056,2]
[314934858,1708687864138,-1038.86,0.00028056,2]
[314934859,1708687864146,-3380.8,0.00028056,2]
[314934860,1708687864155,-500.0,0.00028056,2]
[314934861,1708687864164,-1704.96,0.00028056,2]
[314934862,1708687864173,-500.0,0.00028056,2]
[314934863,1708687864181,-500.0,0.00028056,2]
[314934864,1708687864190,-746.86,0.00028056,2]
[314934865,1708687864199,-3211.66,0.00028056,2]
[314934866,1708687864208,-500.0,0.00028056,2]
[314934867,1708687864217,-500.0,0.00028056,2]
[314934868,1708687864226,-613.68,0.00028056,2]
[314934869,1708687864235,-1432.24,0.00028056,2]
[314934870,1708687864243,-1090.67,0.00028056,2]
[314934871,1708687864252,-500.0,0.00028056,2]
[314934872,1708687864261,-500.0,0.00028056,2]
[314934873,1708687864271,-2172.34,0.00028056,2]
[314934874,1708687864280,-813.15,0.00028056,2]
[314934875,1708687864290,-1166.63,0.00028056,2]
[314934876,1708687864298,-500.0,0.00028056,2]
[314934877,1708687864307,-1361.69,0.00028056,2]
[314934878,1708687864316,-1905.86,0.00028056,2]
[314934879,1708687864325,-650.59,0.00028056,2]
[314934880,1708687864334,-690.41,0.00028056,2]
[314934881,1708687864343,-7440.69,0.00028056,2]
[314934882,1708687864352,-500.0,0.00028056,2]
[314934883,1708687864363,-155.47937735,0.00028056,2]
[314934884,1708687864372,-500.0,0.00028056,2]
[314934885,1708687864382,-535.64,0.00028056,2]
[314934886,1708687864391,-500.0,0.00028056,2]
[314934887,1708687864399,-1976.25,0.00028056,2]
[314934888,1708687864409,-500.0,0.00028056,2]
[314934889,1708687864418,-3282.11,0.00028056,2]
[314934890,1708687864426,-500.0,0.00028056,2]
[314934891,1708687864435,-500.0,0.00028056,2]
[314934892,1708687864444,-1322.37,0.00028056,2]
[314934893,1708687864454,-3684.82,0.00028056,2]
[314934894,1708687864463,-500.0,0.00028056,2]
[314934895,1708687864473,-1022.15,0.00028056,2]
[314934896,1708687864482,-2690.77,0.00028056,2]
[314934897,1708687864490,-967.0,0.00028056,2]
[314934898,1708687864499,-788.57,0.00028056,2]
[314934899,1708687864508,-876.9,0.00028056,2]
[314934900,1708687864518,-611.38,0.00028056,2]
[314934901,1708687864528,-3051.05,0.00028056,2]
[314934902,1708687864537,-565.66,0.00028056,2]
[314934903,1708687864547,-1261.53,0.00028056,2]
[314934904,1708687864556,-3150.01,0.00028056,2]
[314934905,1708687864565,-569.88,0.00028056,2]
[314934906,1708687864573,-755.21,0.00028056,2]
[314934907,1708687864582,-2024.58,0.00028056,2]
[314934908,1708687864591,-500.0,0.00028056,2]
[314934909,1708687864600,-4325.54,0.00028056,2]
[314934910,1708687864609,-1488.55,0.00028056,2]
[314934911,1708687864618,-500.0,0.00028056,2]
[314934912,1708687864627,-1629.43,0.00028056,2]
[314934913,1708687864635,-650.8,0.00028056,2]
[314934914,1708687864644,-1998.19,0.00028056,2]
[314934915,1708687864653,-500.0,0.00028056,2]
[314934916,1708687864662,-500.0,0.00028056,2]
[314934917,1708687864671,-500.0,0.00028056,2]
[314934918,1708687864680,-13459.56,0.00028056,2]
[314934919,1708687864688,-500.0,0.00028056,2]
[314934920,1708687864697,-569.49,0.00028056,2]
[314934921,1708687864706,-500.0,0.00028056,2]
[314934922,1708687864714,-500.0,0.00028056,2]
[314934923,1708687864724,-2575.90005728,0.00028075,2]
[314934924,1708687864733,-500.0,0.00028096,2]
[314934925,1708687864742,-500.0,0.00028096,2]
[314934926,1708687864751,-500.0,0.00028096,2]
[314934927,1708687864760,-1403.53,0.00028096,2]
[314934928,1708687864770,-500.0,0.00028096,2]
[314934929,1708687864779,-500.0,0.00028117,2]
[314934930,1708687864788,-1375.14,0.00028117,2]
[314934931,1708687864797,-678.64,0.00028117,2]
[314934932,1708687864806,-500.0,0.00028117,2]
[314934933,1708687864815,-500.0,0.00028117,2]
[314934934,1708687864824,-702.66,0.00028117,2]
[314934935,1708687864833,-4890.62,0.00028117,2]
[314934936,1708687864842,-500.0,0.00028117,2]
[314934937,1708687864852,-500.0,0.00028117,2]
[314934938,1708687864861,-2518.4,0.00028117,2]
[314934939,1708687864870,-500.0,0.00028117,2]
[314934940,1708687864880,-500.0,0.00028117,2]
[314934941,1708687864889,-674.78,0.00028117,2]
[314934942,1708687864898,-524.82,0.00028117,2]
[314934943,1708687864906,-636.21,0.00028117,2]
[314934944,1708687864916,-500.0,0.00028117,2]
[314934945,1708687864925,-704.48,0.00028117,2]
[314934946,1708687864934,-587.68,0.00028117,2]
[314934947,1708687864943,-1112.79,0.00028117,2]
[314934948,1708687864952,-1963.61,0.00028117,2]
[314934949,1708687864962,-500.0,0.00028118,2]
[314934950,1708687864971,-500.0,0.00028119,2]
[314934951,1708687864980,-500.0,0.00028119,2]
[314934952,1708687864989,-253.07012665,0.00028119,2]
[314934953,1708687864998,-500.0,0.00028119,2]
[314934954,1708687865007,-500.0,0.00028119,2]
[314934955,1708687865017,-609.28033016,0.00028119,2]
[314934956,1708687865027,-500.0,0.00028119,2]
[314934957,1708687865036,-160.78429569,0.00028119,2]
[314934958,1708687865045,-942.75,0.00028119,2]
[314934959,1708687865055,-345.2029675,0.00028119,2]
[314934960,1708687865064,-560.5437256,0.00028119,2]
[314934961,1708687865075,-537.35604509,0.00028119,2]
[314934962,1708687865085,-500.0,0.00028119,2]
[314934963,1708687865094,-535.39491825,0.00028119,2]
[314934964,1708687865104,-500.0,0.00028119,2]
[314934965,1708687865113,-626.23809378,0.00028119,2]
[314934966,1708687865123,-500.0,0.00028119,2]
[314934967,1708687865132,-500.0,0.00028119,2]
[314934968,1708687865141,-566.53216752,0.00028119,2]
[314934969,1708687865151,-500.0,0.00028119,2]
[314934970,1708687865160,-500.0,0.00028119,2]
[314934971,1708687865176,-647.59106198,0.00028119,2]
[314934972,1708687865190,-542.66278243,0.00028119,2]
[314934973,1708687865200,-514.97585604,0.00028119,2]
[314934974,1708687865209,-513.20779016,0.00028119,2]
[314934975,1708687865219,-500.0,0.00028119,2]
[314934976,1708687865228,-551.62,0.00028119,2]
[314934977,1708687865238,-515.55622738,0.00028119,2]
[314934978,1708687865248,-500.0,0.00028119,2]
[314934979,1708687865257,-500.0,0.00028119,2]
[314934980,1708687865266,-500.0,0.00028119,2]
[314934981,1708687865276,-500.0,0.00028119,2]
[314934982,1708687865285,-500.0,0.00028119,2]
[314934983,1708687865294,-500.0,0.00028119,2]
[314934984,1708687865304,-500.0,0.00028119,2]
[314934985,1708687865313,-500.0,0.00028119,2]
[314934986,1708687865322,-646.68350245,0.00028119,2]
[314934987,1708687865332,-500.0,0.00028119,2]
[314934988,1708687865341,-500.0,0.00028119,2]
[314934989,1708687865351,-502.16707777,0.00028119,2]
[314934990,1708687865361,-500.0,0.00028119,2]
[314934991,1708687865372,-571.88526246,0.00028119,2]
[314934992,1708687865381,-500.0,0.00028119,2]
[314934993,1708687865391,-530.17967285,0.00028119,2]
[314934994,1708687865401,-592.54032148,0.00028119,2]
[314934995,1708687865410,-500.0,0.00028119,2]
[314934996,1708687865419,-500.0,0.00028119,2]
[314934997,1708687865429,-500.0,0.00028119,2]
[314934998,1708687865438,-500.0,0.00028119,2]
[314934999,1708687865449,-233.81411453,0.00028119,2]
[314935000,1708687865458,-500.0,0.00028119,2]
[314935001,1708687865468,-500.0,0.00028119,2]
[314935002,1708687865477,-500.0,0.00028119,2]
[314935003,1708687865487,-500.0,0.00028119,2]
[314935004,1708687865496,-500.0,0.00028119,2]
[314935005,1708687865505,-500.0,0.00028119,2]
[314935006,1708687865514,-500.0,0.00028119,2]
[314935007,1708687865524,-500.0,0.00028119,2]
[314935008,1708687865533,-500.0,0.00028119,2]
[314935009,1708687865543,-500.0,0.00028119,2]
[314935010,1708687865552,-608.76,0.00028119,2]
[314935011,1708687865561,-500.0,0.00028119,2]
[314935012,1708687865571,-500.0,0.00028119,2]
[314935013,1708687865580,-500.0,0.00028119,2]
[314935014,1708687865589,-500.0,0.00028119,2]
[314935015,1708687865599,-538.78056884,0.00028119,2]
[314935016,1708687865608,-500.0,0.00028119,2]
[314935017,1708687865617,-500.0,0.00028119,2]
[314935018,1708687865627,-500.0,0.00028119,2]
[314935019,1708687865636,-500.0,0.00028119,2]
[314935020,1708687865645,-500.0,0.00028119,2]
[314935021,1708687865655,-500.0,0.00028119,2]
[314935022,1708687865664,-500.0,0.00028119,2]
[314935023,1708687865674,-500.0,0.00028119,2]
[314935024,1708687865684,-500.0,0.00028119,2]
[314935025,1708687865694,-500.0,0.00028119,2]
[314935026,1708687865704,-522.23,0.00028119,2]
[314935027,1708687865713,-500.0,0.00028119,2]
[314935028,1708687865724,-500.0,0.00028119,2]
[314935029,1708687865734,-500.0,0.00028119,2]
[314935030,1708687865744,-500.0,0.00028119,2]
[314935031,1708687865754,-605.43,0.00028119,2]
[314935032,1708687865765,-500.0,0.00028119,2]
[314935033,1708687865775,-500.0,0.00028119,2]
[314935034,1708687865784,-500.0,0.00028119,2]
[314935035,1708687865794,-150.0,0.0002812,2]
[314935036,1708687865804,-150.0,0.00028133,2]
[314935037,1708687865814,-150.0,0.00028146,2]
[314935038,1708687865824,-226.1,0.00028146,2]
[314935039,1708687865833,-500.0,0.00028158,2]
[314935040,1708687865843,-924.37,0.00028158,2]
[314935041,1708687865853,-500.0,0.00028158,2]
[314935042,1708687865862,-732.46,0.00028158,2]
[314935043,1708687865872,-500.0,0.00028158,2]
[314935044,1708687865886,-577.15,0.00028158,2]
[314935045,1708687865896,-500.0,0.00028159,2]